[Event "Betsys MČR v online bleskovém šachu 2021"]
[Site "Chess.com"]
[Date "2021.04.17"]
[Round "9"]
[White "vit_rosenbaum"]
[Black "MilosJi"]
[Result "0-1"]
[WhiteElo "2262"]
[BlackElo "2580"]
[TimeControl "180+1"]
[EndTime "10:30:57 PDT"]
[Termination "Uživatel MilosJi zvítězil po vzdání soupeře"]

1. e4 {[%clk 0:03:00.9]} 1... d5 {[%clk 0:02:59.4]} 2. exd5 {[%clk 0:03:00.1]}
2... Qxd5 {[%clk 0:03:00.3]} 3. Nc3 {[%clk 0:02:59.5]} 3... Qd6 {[%clk
0:03:00.6]} 4. Nf3 {[%clk 0:02:56.3]} 4... Nf6 {[%clk 0:03:00.6]} 5. d4 {[%clk
0:02:56.1]} 5... c6 {[%clk 0:03:00.7]} 6. Be2 {[%clk 0:02:55.1]} 6... Bf5 {[%clk
0:03:00]} 7. O-O {[%clk 0:02:54.6]} 7... e6 {[%clk 0:03:00.1]} 8. Bg5 {[%clk
0:02:52.2]} 8... Nbd7 {[%clk 0:02:58.5]} 9. Qd2 {[%clk 0:02:50]} 9... Qc7 {[%clk
0:02:57.2]} 10. Rfe1 {[%clk 0:02:48.1]} 10... Bd6 {[%clk 0:02:55.9]} 11. Rad1
{[%clk 0:02:43.5]} 11... O-O {[%clk 0:02:55.5]} 12. h3 {[%clk 0:02:41.9]} 12...
a5 {[%clk 0:02:42.4]} 13. Nh4 {[%clk 0:02:38.1]} 13... Bg6 {[%clk 0:02:39.8]}
14. Nxg6 {[%clk 0:02:37.2]} 14... hxg6 {[%clk 0:02:40.7]} 15. Bf3 {[%clk
0:02:33.7]} 15... a4 {[%clk 0:02:26]} 16. a3 {[%clk 0:02:33.1]} 16... Rfe8
{[%clk 0:02:20.3]} 17. Ne4 {[%clk 0:02:31.9]} 17... Nxe4 {[%clk 0:02:20.1]} 18.
Bxe4 {[%clk 0:02:30.6]} 18... Nf6 {[%clk 0:02:20]} 19. Bf3 {[%clk 0:02:26.4]}
19... Red8 {[%clk 0:02:09.7]} 20. c4 {[%clk 0:02:23.7]} 20... Rd7 {[%clk
0:01:58.6]} 21. Qe3 {[%clk 0:02:12.8]} 21... Qa5 {[%clk 0:01:53.9]} 22. c5
{[%clk 0:02:08.4]} 22... Be7 {[%clk 0:01:47.9]} 23. Qe5 {[%clk 0:01:54.5]} 23...
Rad8 {[%clk 0:01:37.7]} 24. g3 {[%clk 0:01:35.6]} 24... Nd5 {[%clk 0:01:28.6]}
25. Bxe7 {[%clk 0:01:32]} 25... Nxe7 {[%clk 0:01:28.6]} 26. Bg4 {[%clk 0:01:26]}
26... Rd5 {[%clk 0:01:15.5]} 27. Qe4 {[%clk 0:01:20.2]} 27... Nf5 {[%clk
0:01:12]} 28. Bxf5 {[%clk 0:01:17]} 28... gxf5 {[%clk 0:01:12.2]} 29. Qe3 {[%clk
0:01:07.3]} 29... Rxd4 {[%clk 0:01:00]} 30. Rxd4 {[%clk 0:01:05.9]} 30... Rxd4
{[%clk 0:01:00]} 31. Qxd4 {[%clk 0:01:05.9]} 31... Qxe1+ {[%clk 0:00:59.5]} 32.
Kh2 {[%clk 0:01:05.7]} 32... Qe4 {[%clk 0:00:54.3]} 33. Qd6 {[%clk 0:00:56.4]}
33... Kh7 {[%clk 0:00:49.6]} 34. Qe7 {[%clk 0:00:52.3]} 34... Qc2 {[%clk
0:00:35.5]} 35. Qxf7 {[%clk 0:00:46.1]} 35... Qxf2+ {[%clk 0:00:34.9]} 36. Kh1
{[%clk 0:00:46.3]} 36... Qf1+ {[%clk 0:00:34.3]} 37. Kh2 {[%clk 0:00:46.5]}
37... Qe2+ {[%clk 0:00:31.4]} 38. Kh1 {[%clk 0:00:46.4]} 38... Qd1+ {[%clk
0:00:31.5]} 39. Kh2 {[%clk 0:00:45.4]} 39... Qc2+ {[%clk 0:00:31.4]} 40. Kh1
{[%clk 0:00:40.1]} 40... Qb1+ {[%clk 0:00:31.7]} 41. Kh2 {[%clk 0:00:40.6]}
41... Qxb2+ {[%clk 0:00:32]} 42. Kh1 {[%clk 0:00:41.1]} 42... Qc1+ {[%clk
0:00:30.9]} 43. Kh2 {[%clk 0:00:41.5]} 43... Qd2+ {[%clk 0:00:30.8]} 44. Kh1
{[%clk 0:00:41.8]} 44... Qe1+ {[%clk 0:00:30.6]} 45. Kh2 {[%clk 0:00:42.3]}
45... Qf2+ {[%clk 0:00:30.6]} 46. Kh1 {[%clk 0:00:41.9]} 46... Qf3+ {[%clk
0:00:29.4]} 47. Kh2 {[%clk 0:00:41.4]} 47... e5 {[%clk 0:00:28.8]} 48. g4 {[%clk
0:00:35.6]} 48... Qf4+ {[%clk 0:00:27.1]} 49. Kh1 {[%clk 0:00:34.4]} 49... fxg4
{[%clk 0:00:22.2]} 50. Qh5+ {[%clk 0:00:32.4]} 50... Qh6 {[%clk 0:00:22.2]} 51.
Qf5+ {[%clk 0:00:32.3]} 51... Qg6 {[%clk 0:00:21.6]} 52. Qxe5 {[%clk 0:00:26]}
52... gxh3 {[%clk 0:00:21.6]} 53. Qe2 {[%clk 0:00:20.8]} 53... Qg2+ {[%clk
0:00:20.4]} 0-1

[Event "Betsys MČR v online bleskovém šachu 2021"]
[Site "Chess.com"]
[Date "2021.04.17"]
[Round "9"]
[White "NeumanPetr"]
[Black "Svandik49"]
[Result "0-1"]
[WhiteElo "2466"]
[BlackElo "2274"]
[TimeControl "180+1"]
[EndTime "10:30:58 PDT"]
[Termination "Uživatel Svandik49 zvítězil na čas"]

1. e4 {[%clk 0:03:00.9]} 1... c5 {[%clk 0:02:55.4]} 2. Nc3 {[%clk 0:03:01.1]}
2... e6 {[%clk 0:02:55]} 3. g3 {[%clk 0:02:54.4]} 3... Nc6 {[%clk 0:02:53.5]} 4.
Bg2 {[%clk 0:02:54]} 4... Be7 {[%clk 0:02:52.9]} 5. d3 {[%clk 0:02:54.4]} 5...
Nf6 {[%clk 0:02:51.5]} 6. f4 {[%clk 0:02:54.3]} 6... d5 {[%clk 0:02:42.8]} 7. e5
{[%clk 0:02:53.4]} 7... Nd7 {[%clk 0:02:39.5]} 8. Nf3 {[%clk 0:02:53.8]} 8... f6
{[%clk 0:02:28.7]} 9. exf6 {[%clk 0:02:53.3]} 9... Bxf6 {[%clk 0:02:21.7]} 10.
O-O {[%clk 0:02:53]} 10... O-O {[%clk 0:02:20.5]} 11. Re1 {[%clk 0:02:51.2]}
11... Re8 {[%clk 0:02:20.6]} 12. Be3 {[%clk 0:02:49.5]} 12... b6 {[%clk
0:02:18.7]} 13. Bd2 {[%clk 0:02:48.4]} 13... Bb7 {[%clk 0:02:05.7]} 14. h4
{[%clk 0:02:34.9]} 14... a6 {[%clk 0:01:58.8]} 15. Ng5 {[%clk 0:02:33.4]} 15...
Nf8 {[%clk 0:01:54.3]} 16. Nxe6 {[%clk 0:01:58.1]} 16... Nxe6 {[%clk 0:01:41.4]}
17. Bxd5 {[%clk 0:01:54.8]} 17... Bxc3 {[%clk 0:01:38.2]} 18. Bxe6+ {[%clk
0:01:51.1]} 18... Rxe6 {[%clk 0:01:35.8]} 19. Rxe6 {[%clk 0:01:46.7]} 19... Bxb2
{[%clk 0:01:31.4]} 20. Rb1 {[%clk 0:01:46.7]} 20... Bd4+ {[%clk 0:01:31.2]} 21.
Kh2 {[%clk 0:01:46.8]} 21... Qd5 {[%clk 0:01:17.3]} 22. Re4 {[%clk 0:01:43.5]}
22... b5 {[%clk 0:01:11.3]} 23. c4 {[%clk 0:01:40.5]} 23... Qd7 {[%clk
0:01:07.6]} 24. Qh5 {[%clk 0:01:30.3]} 24... b4 {[%clk 0:01:02.9]} 25. Rbe1
{[%clk 0:01:29]} 25... Rf8 {[%clk 0:00:55]} 26. Be3 {[%clk 0:00:59.9]} 26... Bc8
{[%clk 0:00:42]} 27. Kg1 {[%clk 0:00:30]} 27... Qg4 {[%clk 0:00:19.1]} 28. Qd5+
{[%clk 0:00:27.8]} 28... Kh8 {[%clk 0:00:19]} 29. Kf2 {[%clk 0:00:22.3]} 29...
Qh3 {[%clk 0:00:10.8]} 30. Rg1 {[%clk 0:00:15]} 30... Bxe3+ {[%clk 0:00:08.5]}
31. Rxe3 {[%clk 0:00:13.6]} 31... Nd4 {[%clk 0:00:08.7]} 32. Qxc5 {[%clk
0:00:12.4]} 32... Nf5 {[%clk 0:00:08]} 33. Re5 {[%clk 0:00:08.2]} 33... Rg8
{[%clk 0:00:03.9]} 34. Qd5 {[%clk 0:00:03.6]} 34... Qg4 {[%clk 0:00:01.8]} 35.
Qf3 {[%clk 0:00:03.3]} 35... Qxf3+ {[%clk 0:00:02]} 36. Kxf3 {[%clk 0:00:03.9]}
36... Nd4+ {[%clk 0:00:02.5]} 37. Ke4 {[%clk 0:00:03.5]} 37... Ne2 {[%clk
0:00:02.2]} 38. Re1 {[%clk 0:00:01.2]} 38... Bb7+ {[%clk 0:00:02.2]} 0-1

[Event "Betsys MČR v online bleskovém šachu 2021"]
[Site "Chess.com"]
[Date "2021.04.17"]
[Round "9"]
[White "JohnnyDuck64"]
[Black "Mikulas19"]
[Result "0-1"]
[WhiteElo "2086"]
[BlackElo "1897"]
[TimeControl "180+1"]
[EndTime "10:30:58 PDT"]
[Termination "Uživatel Mikulas19 zvítězil na čas"]

1. e4 {[%clk 0:03:00.9]} 1... e5 {[%clk 0:02:59.7]} 2. Nf3 {[%clk 0:03:00.4]}
2... Nf6 {[%clk 0:02:59.7]} 3. Nxe5 {[%clk 0:02:54.3]} 3... Nc6 {[%clk
0:02:59.5]} 4. Nxc6 {[%clk 0:02:48.1]} 4... dxc6 {[%clk 0:03:00.4]} 5. d3 {[%clk
0:02:48]} 5... Bc5 {[%clk 0:02:59.6]} 6. Be2 {[%clk 0:02:41.6]} 6... h5 {[%clk
0:02:53.8]} 7. Nd2 {[%clk 0:02:30.9]} 7... Ng4 {[%clk 0:02:07.4]} 8. Bxg4 {[%clk
0:02:23.1]} 8... hxg4 {[%clk 0:02:05.5]} 9. Nf1 {[%clk 0:02:11.6]} 9... Qf6
{[%clk 0:01:53.3]} 10. Qe2 {[%clk 0:01:58]} 10... Be6 {[%clk 0:01:40.1]} 11. c3
{[%clk 0:01:56.8]} 11... O-O-O {[%clk 0:01:34.7]} 12. d4 {[%clk 0:01:48.9]}
12... Bb6 {[%clk 0:01:33.6]} 13. Be3 {[%clk 0:01:38.2]} 13... g6 {[%clk
0:01:01.3]} 14. Ng3 {[%clk 0:01:22.8]} 14... Qe7 {[%clk 0:00:52.4]} 15. Qd2
{[%clk 0:01:12.7]} 15... c5 {[%clk 0:00:45.3]} 16. d5 {[%clk 0:01:09.1]} 16...
c6 {[%clk 0:00:44.9]} 17. c4 {[%clk 0:01:04.1]} 17... cxd5 {[%clk 0:00:43.1]}
18. cxd5 {[%clk 0:00:58.3]} 18... f5 {[%clk 0:00:39.5]} 19. Bg5 {[%clk
0:00:48.2]} 19... Qc7 {[%clk 0:00:30.8]} 20. Bxd8 {[%clk 0:00:46.8]} 20... Rxd8
{[%clk 0:00:29.4]} 21. O-O-O {[%clk 0:00:34.9]} 21... c4 {[%clk 0:00:22.3]} 22.
Kb1 {[%clk 0:00:27.8]} 22... f4 {[%clk 0:00:20.2]} 23. Ne2 {[%clk 0:00:25.8]}
23... g5 {[%clk 0:00:20]} 24. Nd4 {[%clk 0:00:25.2]} 24... Bf7 {[%clk 0:00:18]}
25. Rc1 {[%clk 0:00:23.8]} 25... Kb8 {[%clk 0:00:16.6]} 26. Qc3 {[%clk
0:00:20.4]} 26... Qe5 {[%clk 0:00:15.7]} 27. Nb5 {[%clk 0:00:07.3]} 27... Qxe4+
{[%clk 0:00:14.8]} 28. Ka1 {[%clk 0:00:07.5]} 28... Rxd5 {[%clk 0:00:12.1]} 29.
Rhe1 {[%clk 0:00:06.3]} 29... Qf5 {[%clk 0:00:10.1]} 30. Na3 {[%clk 0:00:06.2]}
30... Rd3 {[%clk 0:00:09.4]} 31. Qxc4 {[%clk 0:00:06]} 31... Bxc4 {[%clk
0:00:08.8]} 32. Nxc4 {[%clk 0:00:05.6]} 32... Rd8 {[%clk 0:00:07.6]} 33. Ne5
{[%clk 0:00:05.4]} 33... Qf8 {[%clk 0:00:05.8]} 34. Ng6 {[%clk 0:00:04.1]} 34...
Qg7 {[%clk 0:00:04.8]} 35. Ne7 {[%clk 0:00:02.5]} 35... a6 {[%clk 0:00:04.1]}
36. Nf5 {[%clk 0:00:02]} 36... Qf6 {[%clk 0:00:03.9]} 37. Ne7 {[%clk 0:00:02.1]}
37... Bd4 {[%clk 0:00:03.7]} 38. Kb1 {[%clk 0:00:01.4]} 38... Bxb2 {[%clk
0:00:03.5]} 0-1

[Event "Betsys MČR v online bleskovém šachu 2021"]
[Site "Chess.com"]
[Date "2021.04.17"]
[Round "9"]
[White "EliasD123"]
[Black "SanyH"]
[Result "0-1"]
[WhiteElo "1314"]
[BlackElo "1604"]
[TimeControl "180+1"]
[EndTime "10:30:58 PDT"]
[Termination "Uživatel SanyH zvítězil matem"]

1. e4 {[%clk 0:03:00.9]} 1... c5 {[%clk 0:02:59.2]} 2. Nf3 {[%clk 0:02:58.4]}
2... Nc6 {[%clk 0:02:59.5]} 3. d4 {[%clk 0:02:57.6]} 3... cxd4 {[%clk
0:02:59.7]} 4. Nxd4 {[%clk 0:02:58.2]} 4... g6 {[%clk 0:03:00]} 5. Nc3 {[%clk
0:02:58.1]} 5... Bg7 {[%clk 0:03:00.2]} 6. Be3 {[%clk 0:02:57]} 6... Nf6 {[%clk
0:03:00.1]} 7. Qd2 {[%clk 0:02:57]} 7... O-O {[%clk 0:02:59.8]} 8. Nf3 {[%clk
0:02:57.1]} 8... d6 {[%clk 0:02:56.7]} 9. Bd3 {[%clk 0:02:56.2]} 9... Bg4 {[%clk
0:02:51.1]} 10. O-O-O {[%clk 0:02:50.7]} 10... Ne5 {[%clk 0:02:47.9]} 11. h3
{[%clk 0:02:39.1]} 11... Nxf3 {[%clk 0:02:43.8]} 12. gxf3 {[%clk 0:02:37.4]}
12... Bxf3 {[%clk 0:02:43.7]} 13. Rdg1 {[%clk 0:02:37.7]} 13... Bxh1 {[%clk
0:02:42.9]} 14. Rxh1 {[%clk 0:02:37.9]} 14... Qa5 {[%clk 0:02:41.7]} 15. Rg1
{[%clk 0:02:37.1]} 15... Rac8 {[%clk 0:02:24.7]} 16. h4 {[%clk 0:02:33.7]} 16...
Nh5 {[%clk 0:02:19]} 17. Be2 {[%clk 0:02:30.6]} 17... Bxc3 {[%clk 0:02:10.2]}
18. bxc3 {[%clk 0:02:21.7]} 18... Nf6 {[%clk 0:02:08.4]} 19. h5 {[%clk
0:02:19.8]} 19... Nxe4 {[%clk 0:02:05.5]} 20. Qd3 {[%clk 0:02:16.4]} 20... Qa3+
{[%clk 0:02:03]} 21. Kd1 {[%clk 0:02:12.5]} 21... Nxf2+ {[%clk 0:01:54.5]} 22.
Bxf2 {[%clk 0:02:07]} 22... Rxc3 {[%clk 0:01:51.7]} 23. Qd4 {[%clk 0:02:02.7]}
23... Qb2 {[%clk 0:01:38]} 24. Bd3 {[%clk 0:01:52.5]} 24... Qa1+ {[%clk
0:01:20.8]} 25. Ke2 {[%clk 0:01:50.7]} 25... Qb2 {[%clk 0:01:10.5]} 26. hxg6
{[%clk 0:01:45.2]} 26... fxg6 {[%clk 0:01:09.7]} 27. Bc4+ {[%clk 0:01:31.8]}
27... Rxc4 {[%clk 0:01:05.2]} 28. Qxb2 {[%clk 0:01:30.5]} 28... Re4+ {[%clk
0:01:01.2]} 29. Kd3 {[%clk 0:01:28.5]} 29... d5 {[%clk 0:00:55.6]} 30. Bd4
{[%clk 0:01:13.3]} 30... Rf3+ {[%clk 0:00:52.9]} 31. Kd2 {[%clk 0:01:09.8]}
31... Rff4 {[%clk 0:00:47.1]} 32. c3 {[%clk 0:01:05.1]} 32... Rxd4+ {[%clk
0:00:37.8]} 33. cxd4 {[%clk 0:01:03.7]} 33... Rf2+ {[%clk 0:00:37.6]} 34. Kc3
{[%clk 0:01:01.2]} 34... Rxb2 {[%clk 0:00:37.7]} 35. Kxb2 {[%clk 0:01:01.8]}
35... Kf7 {[%clk 0:00:37.8]} 36. Rh1 {[%clk 0:00:57.9]} 36... h5 {[%clk
0:00:36.8]} 37. Kc3 {[%clk 0:00:58.2]} 37... Kf6 {[%clk 0:00:36]} 38. Kb4 {[%clk
0:00:58.5]} 38... Kf5 {[%clk 0:00:34.7]} 39. Kc5 {[%clk 0:00:58.9]} 39... Ke4
{[%clk 0:00:34.1]} 40. Rg1 {[%clk 0:00:53.1]} 40... Kf5 {[%clk 0:00:30.1]} 41.
Kxd5 {[%clk 0:00:52.1]} 41... g5 {[%clk 0:00:29]} 42. a4 {[%clk 0:00:43.5]}
42... g4 {[%clk 0:00:28.1]} 43. Kc4 {[%clk 0:00:30.9]} 43... h4 {[%clk 0:00:28]}
44. Kd3 {[%clk 0:00:30.7]} 44... Kf4 {[%clk 0:00:25.3]} 45. Ke2 {[%clk
0:00:29.8]} 45... g3 {[%clk 0:00:23]} 46. Kf1 {[%clk 0:00:24.8]} 46... h3 {[%clk
0:00:21.7]} 47. d5 {[%clk 0:00:18.7]} 47... Kf3 {[%clk 0:00:21.4]} 48. Ke1
{[%clk 0:00:16.7]} 48... h2 {[%clk 0:00:19.2]} 49. Rh1 {[%clk 0:00:16.6]} 49...
g2 {[%clk 0:00:18.7]} 50. Rf1+ {[%clk 0:00:15.6]} 50... gxf1=Q+ {[%clk
0:00:17.6]} 51. Kxf1 {[%clk 0:00:15.5]} 51... h1=Q# {[%clk 0:00:17.9]} 0-1

[Event "Betsys MČR v online bleskovém šachu 2021"]
[Site "Chess.com"]
[Date "2021.04.17"]
[Round "9"]
[White "Sandokanom"]
[Black "iDarkTraveler"]
[Result "1/2-1/2"]
[WhiteElo "1761"]
[BlackElo "1947"]
[TimeControl "180+1"]
[EndTime "10:30:59 PDT"]
[Termination "Remíza – nedostatek materiálu"]

1. c4 {[%clk 0:03:00.9]} 1... c5 {[%clk 0:01:05.1]} 2. Nc3 {[%clk 0:02:49.7]}
2... Nc6 {[%clk 0:01:00.6]} 3. Nf3 {[%clk 0:02:49]} 3... Nf6 {[%clk 0:01:00.9]}
4. a3 {[%clk 0:02:48.4]} 4... g6 {[%clk 0:01:01.2]} 5. e3 {[%clk 0:02:48.5]}
5... b6 {[%clk 0:01:01]} 6. d4 {[%clk 0:02:48.3]} 6... cxd4 {[%clk 0:01:00.7]}
7. Nxd4 {[%clk 0:02:48.3]} 7... Bb7 {[%clk 0:00:59.1]} 8. f3 {[%clk 0:02:43.2]}
8... Bg7 {[%clk 0:00:58.7]} 9. Be2 {[%clk 0:02:40]} 9... O-O {[%clk 0:00:58.8]}
10. O-O {[%clk 0:02:38.6]} 10... Rc8 {[%clk 0:00:58.4]} 11. b4 {[%clk
0:02:29.3]} 11... Nxd4 {[%clk 0:00:56.4]} 12. exd4 {[%clk 0:02:28.6]} 12... a6
{[%clk 0:00:56.7]} 13. Bb2 {[%clk 0:02:28]} 13... e6 {[%clk 0:00:54.3]} 14. c5
{[%clk 0:02:25]} 14... d5 {[%clk 0:00:51.3]} 15. Rc1 {[%clk 0:02:13.4]} 15...
bxc5 {[%clk 0:00:48.4]} 16. bxc5 {[%clk 0:02:13.2]} 16... Qa5 {[%clk 0:00:45.6]}
17. Bd3 {[%clk 0:02:01.1]} 17... Bc6 {[%clk 0:00:44.3]} 18. Rb1 {[%clk
0:01:50.9]} 18... Rb8 {[%clk 0:00:44.1]} 19. Qc2 {[%clk 0:01:40]} 19... Rb7
{[%clk 0:00:43.4]} 20. Ne2 {[%clk 0:01:16.6]} 20... Rfb8 {[%clk 0:00:42.7]} 21.
Bc3 {[%clk 0:01:12.2]} 21... Qxa3 {[%clk 0:00:35.6]} 22. Rxb7 {[%clk 0:01:10.7]}
22... Rxb7 {[%clk 0:00:29.1]} 23. Ra1 {[%clk 0:01:08]} 23... Qb3 {[%clk
0:00:28.1]} 24. Rxa6 {[%clk 0:01:03.3]} 24... Bd7 {[%clk 0:00:13.6]} 25. c6
{[%clk 0:00:57.5]} 25... Qxc2 {[%clk 0:00:07.9]} 26. Bxc2 {[%clk 0:00:57.3]}
26... Bxc6 {[%clk 0:00:07.5]} 27. Rxc6 {[%clk 0:00:57.2]} 27... h5 {[%clk
0:00:06.8]} 28. Bd3 {[%clk 0:00:53.4]} 28... Rb8 {[%clk 0:00:03.5]} 29. Kf2
{[%clk 0:00:52.8]} 29... Kh7 {[%clk 0:00:03.7]} 30. h3 {[%clk 0:00:50.2]} 30...
Ra8 {[%clk 0:00:04.1]} 31. Bb4 {[%clk 0:00:44.9]} 31... h4 {[%clk 0:00:04.2]}
32. Be7 {[%clk 0:00:43.7]} 32... Nh5 {[%clk 0:00:04.4]} 33. g4 {[%clk
0:00:39.6]} 33... hxg3+ {[%clk 0:00:03.6]} 34. Nxg3 {[%clk 0:00:39.5]} 34...
Ra2+ {[%clk 0:00:04.5]} 35. Ne2 {[%clk 0:00:33.8]} 35... Bxd4+ {[%clk
0:00:04.1]} 36. Ke1 {[%clk 0:00:27.3]} 36... Ra1+ {[%clk 0:00:04.4]} 37. Kd2
{[%clk 0:00:26.6]} 37... Ra2+ {[%clk 0:00:04.4]} 38. Rc2 {[%clk 0:00:25.8]}
38... Rxc2+ {[%clk 0:00:04.3]} 39. Bxc2 {[%clk 0:00:25.4]} 39... Bf6 {[%clk
0:00:05.2]} 40. Bxf6 {[%clk 0:00:24.9]} 40... Nxf6 {[%clk 0:00:06.1]} 41. Nd4
{[%clk 0:00:24.1]} 41... Kh6 {[%clk 0:00:05.9]} 42. Ke2 {[%clk 0:00:23.1]} 42...
Kg5 {[%clk 0:00:06.4]} 43. Kf2 {[%clk 0:00:23.2]} 43... e5 {[%clk 0:00:06.6]}
44. Nc6 {[%clk 0:00:22.6]} 44... e4 {[%clk 0:00:06.7]} 45. Ne5 {[%clk
0:00:22.4]} 45... exf3 {[%clk 0:00:06.1]} 46. Nxf7+ {[%clk 0:00:22]} 46... Kh4
{[%clk 0:00:06.6]} 47. Kxf3 {[%clk 0:00:22.1]} 47... Kxh3 {[%clk 0:00:06.1]} 48.
Bxg6 {[%clk 0:00:22.1]} 48... Ne4 {[%clk 0:00:06.5]} 49. Bxe4 {[%clk 0:00:21.2]}
49... dxe4+ {[%clk 0:00:06.6]} 50. Kxe4 {[%clk 0:00:22.1]} 1/2-1/2

[Event "Betsys MČR v online bleskovém šachu 2021"]
[Site "Chess.com"]
[Date "2021.04.17"]
[Round "9"]
[White "Tlaskin"]
[Black "Molefancier"]
[Result "0-1"]
[WhiteElo "1338"]
[BlackElo "1075"]
[TimeControl "180+1"]
[EndTime "10:30:59 PDT"]
[Termination "Uživatel Molefancier zvítězil na čas"]

1. e4 {[%clk 0:03:00.9]} 1... c6 {[%clk 0:02:57.1]} 2. d4 {[%clk 0:02:59.4]}
2... d5 {[%clk 0:02:56.5]} 3. Nc3 {[%clk 0:02:59.2]} 3... e6 {[%clk 0:02:50]} 4.
e5 {[%clk 0:02:57.7]} 4... c5 {[%clk 0:02:49]} 5. Nf3 {[%clk 0:02:50.4]} 5...
Nc6 {[%clk 0:02:48.5]} 6. Bb5 {[%clk 0:02:45.5]} 6... a6 {[%clk 0:02:46.8]} 7.
Bxc6+ {[%clk 0:02:42.8]} 7... bxc6 {[%clk 0:02:46.6]} 8. O-O {[%clk 0:02:37.7]}
8... cxd4 {[%clk 0:02:46]} 9. Qxd4 {[%clk 0:02:27.6]} 9... c5 {[%clk 0:02:44.8]}
10. Qg4 {[%clk 0:01:50.7]} 10... Ne7 {[%clk 0:02:38.3]} 11. Ng5 {[%clk
0:01:26.4]} 11... Ng6 {[%clk 0:02:31.7]} 12. Qf3 {[%clk 0:01:18.1]} 12... Qd7
{[%clk 0:02:17.2]} 13. Re1 {[%clk 0:01:13]} 13... h6 {[%clk 0:02:14.4]} 14. Nh3
{[%clk 0:01:04.6]} 14... Be7 {[%clk 0:02:10.1]} 15. b3 {[%clk 0:00:56.3]} 15...
O-O {[%clk 0:02:08.7]} 16. Bb2 {[%clk 0:00:51.5]} 16... d4 {[%clk 0:02:06]} 17.
Na4 {[%clk 0:00:44]} 17... Bb7 {[%clk 0:02:03.9]} 18. Qd3 {[%clk 0:00:34.1]}
18... Bc6 {[%clk 0:01:53.8]} 19. Nb6 {[%clk 0:00:32.7]} 19... Qb7 {[%clk
0:01:41]} 20. Nxa8 {[%clk 0:00:32]} 20... Qxa8 {[%clk 0:01:40.3]} 21. c4 {[%clk
0:00:31.2]} 21... Bxg2 {[%clk 0:01:37.5]} 22. Qg3 {[%clk 0:00:23]} 22... Be4
{[%clk 0:01:30.2]} 23. Qg4 {[%clk 0:00:17.9]} 23... Bh1 {[%clk 0:01:16.6]} 24.
f3 {[%clk 0:00:16]} 24... Bxf3 {[%clk 0:01:13.9]} 25. Qg3 {[%clk 0:00:14.9]}
25... Bc6 {[%clk 0:01:06.7]} 26. Nf4 {[%clk 0:00:14.1]} 26... Nxf4 {[%clk
0:01:05.8]} 27. Qxf4 {[%clk 0:00:14]} 27... Bg5 {[%clk 0:00:58.9]} 28. Qg4
{[%clk 0:00:12]} 28... Bh1 {[%clk 0:00:57.1]} 29. Qg3 {[%clk 0:00:11.1]} 29...
Bc6 {[%clk 0:00:53.4]} 30. Rf1 {[%clk 0:00:10.7]} 30... f6 {[%clk 0:00:51.2]}
31. exf6 {[%clk 0:00:09]} 31... Bxf6 {[%clk 0:00:49.5]} 32. Rae1 {[%clk
0:00:07.4]} 32... Qc8 {[%clk 0:00:44.9]} 33. Qd6 {[%clk 0:00:06]} 33... Rd8
{[%clk 0:00:39.9]} 34. Qxe6+ {[%clk 0:00:05.7]} 34... Qxe6 {[%clk 0:00:38.8]}
35. Rxe6 {[%clk 0:00:05.3]} 35... Ba8 {[%clk 0:00:33.9]} 36. Rxa6 {[%clk
0:00:04.7]} 36... Re8 {[%clk 0:00:31.8]} 37. Raxf6 {[%clk 0:00:04.2]} 37... gxf6
{[%clk 0:00:30.5]} 38. Rxf6 {[%clk 0:00:04.2]} 38... Re1+ {[%clk 0:00:29.7]} 39.
Kf2 {[%clk 0:00:04]} 39... Rd1 {[%clk 0:00:27.4]} 40. Rxh6 {[%clk 0:00:03.3]}
40... Rd2+ {[%clk 0:00:26.3]} 41. Ke1 {[%clk 0:00:02.7]} 41... Rxb2 {[%clk
0:00:26.5]} 42. Ra6 {[%clk 0:00:02.6]} 42... Bf3 {[%clk 0:00:23.4]} 43. Rg6+
{[%clk 0:00:01.7]} 43... Kf7 {[%clk 0:00:22.3]} 44. Rg3 {[%clk 0:00:01.4]} 44...
Rb1+ {[%clk 0:00:20.4]} 45. Kf2 {[%clk 0:00:01.3]} 45... Be4 {[%clk 0:00:18.6]}
0-1

[Event "Betsys MČR v online bleskovém šachu 2021"]
[Site "Chess.com"]
[Date "2021.04.17"]
[Round "9"]
[White "Skalicky"]
[Black "Toman_26"]
[Result "0-1"]
[WhiteElo "711"]
[BlackElo "916"]
[TimeControl "180+1"]
[EndTime "10:30:59 PDT"]
[Termination "Uživatel Toman_26 zvítězil na čas"]

1. e4 {[%clk 0:03:00.9]} 1... c5 {[%clk 0:02:59.1]} 2. Nf3 {[%clk 0:03:00.2]}
2... d6 {[%clk 0:02:58.8]} 3. d4 {[%clk 0:02:59.8]} 3... cxd4 {[%clk 0:02:59]}
4. Nxd4 {[%clk 0:02:59.2]} 4... Nf6 {[%clk 0:02:59.6]} 5. Nc3 {[%clk 0:02:58.6]}
5... g6 {[%clk 0:03:00]} 6. Be3 {[%clk 0:02:57.2]} 6... Bg7 {[%clk 0:03:00.4]}
7. f3 {[%clk 0:02:56.7]} 7... O-O {[%clk 0:03:00.6]} 8. Qd2 {[%clk 0:02:52.4]}
8... Nc6 {[%clk 0:03:01]} 9. g4 {[%clk 0:02:50.7]} 9... Bd7 {[%clk 0:02:58.6]}
10. O-O-O {[%clk 0:02:45.8]} 10... a6 {[%clk 0:02:55.4]} 11. h4 {[%clk
0:02:43.4]} 11... b5 {[%clk 0:02:54.3]} 12. Kb1 {[%clk 0:02:29.6]} 12... b4
{[%clk 0:02:49.4]} 13. Nce2 {[%clk 0:02:26.6]} 13... a5 {[%clk 0:02:47.9]} 14.
g5 {[%clk 0:02:23.9]} 14... Nh5 {[%clk 0:02:46.8]} 15. Rg1 {[%clk 0:02:16]}
15... a4 {[%clk 0:02:46.2]} 16. b3 {[%clk 0:01:50.7]} 16... axb3 {[%clk
0:02:44.7]} 17. cxb3 {[%clk 0:01:47.4]} 17... Qa5 {[%clk 0:02:36]} 18. Rc1
{[%clk 0:01:34.1]} 18... Rfc8 {[%clk 0:02:17.8]} 19. Nxc6 {[%clk 0:01:32.7]}
19... Bxc6 {[%clk 0:02:16.9]} 20. Nd4 {[%clk 0:01:25.9]} 20... Bd7 {[%clk
0:02:08.3]} 21. Rxc8+ {[%clk 0:01:19.4]} 21... Rxc8 {[%clk 0:02:09.2]} 22. Bg2
{[%clk 0:01:15.3]} 22... Qa3 {[%clk 0:01:55.6]} 23. Qb2 {[%clk 0:01:04.2]} 23...
Qxb2+ {[%clk 0:01:38.3]} 24. Kxb2 {[%clk 0:01:03.5]} 24... Bb5 {[%clk
0:01:36.4]} 25. Rc1 {[%clk 0:00:58.1]} 25... Rxc1 {[%clk 0:01:34.6]} 26. Kxc1
{[%clk 0:00:57.6]} 26... Bd7 {[%clk 0:01:27.2]} 27. Nc2 {[%clk 0:00:53.2]} 27...
Bc3 {[%clk 0:01:24.5]} 28. Bd2 {[%clk 0:00:49.5]} 28... Kf8 {[%clk 0:01:20.8]}
29. Bxc3 {[%clk 0:00:45]} 29... bxc3 {[%clk 0:01:20.3]} 30. Kd1 {[%clk
0:00:44.6]} 30... Nf4 {[%clk 0:01:18.9]} 31. Bf1 {[%clk 0:00:38.9]} 31... f6
{[%clk 0:01:13.1]} 32. Ne3 {[%clk 0:00:31.5]} 32... Ne6 {[%clk 0:01:02.6]} 33.
Kc2 {[%clk 0:00:30]} 33... Nd4+ {[%clk 0:01:02.3]} 34. Kxc3 {[%clk 0:00:26.3]}
34... Nxf3 {[%clk 0:01:02.7]} 35. gxf6 {[%clk 0:00:23.2]} 35... exf6 {[%clk
0:01:02.2]} 36. Nd5 {[%clk 0:00:20.8]} 36... Kf7 {[%clk 0:00:56.9]} 37. Be2
{[%clk 0:00:16.8]} 37... Nxh4 {[%clk 0:00:56]} 38. a4 {[%clk 0:00:12.9]} 38...
f5 {[%clk 0:00:49]} 39. exf5 {[%clk 0:00:11.8]} 39... Bxf5 {[%clk 0:00:45.5]}
40. Bc4 {[%clk 0:00:10]} 40... Ke8 {[%clk 0:00:44.1]} 41. Nf6+ {[%clk
0:00:08.9]} 41... Kd8 {[%clk 0:00:41.8]} 42. Nxh7 {[%clk 0:00:08.6]} 42... Kc7
{[%clk 0:00:39.9]} 43. Ng5 {[%clk 0:00:08.2]} 43... Ng2 {[%clk 0:00:35.5]} 44.
Bd3 {[%clk 0:00:06.5]} 44... d5 {[%clk 0:00:30]} 45. Bxf5 {[%clk 0:00:06.5]}
45... gxf5 {[%clk 0:00:30.3]} 46. Kd4 {[%clk 0:00:06.3]} 46... Kd6 {[%clk
0:00:28.6]} 47. Nf3 {[%clk 0:00:03.8]} 47... Nf4 {[%clk 0:00:27]} 48. Nd2 {[%clk
0:00:02.2]} 48... Ne2+ {[%clk 0:00:26.7]} 0-1